bitfinex-derivatives/quotes_BTCF0:USTF0_20250602
["timestamp","ask_amount","ask_price","bid_price","bid_amount"]
[1748870281594,1.57311963,104210.0,104200.0,0.8503497]
[1748870282001,1.34499091,104210.0,104200.0,0.8503497]
[1748870282202,1.57311963,104210.0,104200.0,0.8503497]
[1748870285400,1.57311963,104210.0,104200.0,0.8501097]
[1748870286408,1.37311963,104210.0,104200.0,0.65842]
[1748870286600,1.58297141,104210.0,104200.0,0.8502697]
[1748870286905,1.78297141,104210.0,104200.0,0.8502697]
[1748870287995,1.78297141,104210.0,104200.0,0.65842]
[1748870288200,1.78297141,104210.0,104200.0,0.8502697]
[1748870288701,1.78297141,104210.0,104200.0,0.62812]
[1748870288903,1.78297141,104210.0,104200.0,0.8199697]
[1748870290106,1.78297141,104210.0,104200.0,0.2699297]
[1748870290311,1.78297141,104210.0,104200.0,0.8198897]
[1748870291621,1.57311963,104210.0,104200.0,0.8198897]
[1748870291904,1.78294944,104210.0,104200.0,0.62804]
[1748870292104,1.57311963,104210.0,104200.0,0.62804]
[1748870293595,1.57311963,104210.0,104200.0,0.5975]
[1748870294698,1.57311963,104210.0,104200.0,0.01458]
[1748870294913,1.57311963,104210.0,104200.0,0.56434]
[1748870296307,1.57311963,104210.0,104200.0,0.7561896]
[1748870296907,1.57311963,104210.0,104200.0,0.7880896]
[1748870298107,1.34499091,104210.0,104200.0,0.8183896]
[1748870299212,1.57311963,104210.0,104200.0,0.7880896]
[1748870301409,1.37311963,104210.0,104200.0,0.01458]
[1748870301604,1.37311963,104210.0,104200.0,0.45974]
[1748870301798,1.57311963,104210.0,104200.0,0.01458]
[1748870302000,1.57311963,104210.0,104190.0,0.00014371]
[1748870302001,0.6840493,104200.0,104190.0,0.00014371]
[1748870302200,1.64790674,104200.0,104190.0,0.00014371]
[1748870302398,1.64790674,104200.0,104190.0,1e-08]
[1748870302602,1.74790674,104200.0,104190.0,1e-08]
[1748870302810,2.04799378,104200.0,104190.0,1e-08]
[1748870303009,1.69637634,104200.0,104190.0,1e-08]
[1748870303617,0.1918862,104180.0,104170.0,0.01977994]
[1748870303803,0.9134862,104180.0,104170.0,0.01977994]
[1748870304114,0.9134862,104180.0,104170.0,0.00231193]
[1748870304115,1.23711492,104180.0,104170.0,0.00231193]
[1748870304312,1.31473552,104180.0,104170.0,0.00231193]
[1748870304513,1.31473552,104180.0,104170.0,0.00211193]
[1748870304709,1.31473552,104180.0,104170.0,0.01039193]
[1748870304914,1.31473552,104180.0,104170.0,0.01019193]
[1748870305121,1.31473552,104180.0,104170.0,0.01039193]
[1748870305122,1.31773552,104180.0,104170.0,0.01039193]
[1748870305302,1.32073552,104180.0,104170.0,0.01039193]
[1748870307019,1.32073552,104180.0,104170.0,0.02777584]
[1748870307316,1.32073552,104180.0,104170.0,0.01039193]
[1748870308019,0.1919048,104170.0,104160.0,0.55128]
[1748870308314,0.1919232,104160.0,104150.0,0.1364]
[1748870308519,0.87495192,104160.0,104150.0,0.7742216]
[1748870310001,0.87495192,104160.0,104150.0,0.8045216]
[1748870310207,0.87495192,104160.0,104150.0,0.83533555]
[1748870310914,0.87495192,104160.0,104150.0,0.83541555]
[1748870312315,0.6161232,104160.0,104150.0,1.06354427]
[1748870312520,0.6161232,104160.0,104150.0,1.09504427]
[1748870316518,0.6161232,104160.0,104150.0,0.86691555]
[1748870316720,0.8161232,104160.0,104150.0,0.86691555]
[1748870318012,0.8161232,104160.0,104150.0,0.42095555]
[1748870318213,0.8161232,104160.0,104150.0,0.86651555]
[1748870318810,0.2,104160.0,104150.0,1.09464427]
[1748870319015,0.3919232,104160.0,104150.0,1.09464427]
[1748870319220,0.4219232,104160.0,104150.0,1.09464427]
[1748870319414,0.4531232,104160.0,104150.0,1.09464427]
[1748870319614,0.4531232,104160.0,104150.0,0.86651555]
[1748870319808,0.4531232,104160.0,104150.0,1.09464427]
[1748870320212,0.4531232,104160.0,104150.0,1.09484427]
[1748870322616,0.4531232,104160.0,104150.0,1.09448427]
[1748870323014,0.4531232,104160.0,104150.0,0.86635555]
[1748870323221,0.4833232,104160.0,104150.0,0.86615555]
[1748870323421,0.4833232,104160.0,104150.0,0.86635555]
[1748870325022,0.4833232,104160.0,104150.0,0.31575555]
[1748870325211,1.07225192,104160.0,104150.0,0.22295555]
[1748870325410,1.07225192,104160.0,104150.0,0.77323555]
[1748870325612,1.07225192,104160.0,104150.0,0.77303555]
[1748870325933,1.07225192,104160.0,104150.0,0.77323555]
[1748870326820,1.07225192,104160.0,104150.0,0.77311555]
[1748870327222,1.07225192,104160.0,104150.0,0.80421555]
[1748870328123,1.07225192,104160.0,104150.0,0.80409555]
[1748870331523,0.87225192,104160.0,104150.0,0.80409555]
[1748870331829,1.07225192,104160.0,104150.0,0.80409555]
[1748870332433,1.28159553,104160.0,104150.0,0.80409555]
[1748870332933,1.28159553,104160.0,104150.0,1.03222427]
[1748870333133,1.28159553,104160.0,104150.0,1.06222427]
[1748870333437,1.05346681,104160.0,104150.0,1.06222427]
[1748870337437,1.05346681,104160.0,104150.0,0.83409555]
[1748870338443,1.05346681,104160.0,104150.0,0.80409555]
[1748870339739,1.05346681,104160.0,104150.0,0.25405555]
[1748870339940,1.05346681,104160.0,104150.0,0.80273555]
[1748870340939,1.05346681,104160.0,104150.0,0.35869555]
[1748870341144,1.05346681,104160.0,104150.0,0.80281555]
[1748870341345,0.8441232,104160.0,104150.0,0.80281555]
[1748870342331,0.6441232,104160.0,104150.0,0.80281555]
[1748870342534,0.8441232,104160.0,104150.0,0.80281555]
[1748870342743,1.05346681,104160.0,104150.0,0.80281555]
[1748870343131,1.07284352,104160.0,104150.0,1.03153587]
[1748870343346,1.28218713,104160.0,104150.0,1.03153587]
[1748870347342,1.28218713,104160.0,104150.0,0.48277587]
[1748870347548,1.28218713,104160.0,104150.0,0.80229555]
[1748870347746,1.28218713,104160.0,104150.0,1.03101587]
[1748870350349,1.28218713,104160.0,104150.0,0.48277587]
[1748870351645,1.28218713,104160.0,104150.0,0.92637587]
[1748870354855,0.87284352,104160.0,104150.0,0.92637587]
[1748870355151,1.07284352,104160.0,104150.0,0.92637587]
[1748870355547,1.07284352,104160.0,104150.0,0.48277587]
[1748870355848,1.07284352,104160.0,104150.0,0.92613587]
[1748870356049,1.07284352,104160.0,104150.0,0.92593587]
[1748870357150,1.07284352,104160.0,104150.0,1.03057587]
[1748870358257,1.07284352,104160.0,104150.0,0.80185555]
[1748870358545,0.8441232,104160.0,104150.0,1.03057587]
[1748870358747,1.07284352,104160.0,104150.0,1.03057587]
[1748870359345,1.07284352,104160.0,104150.0,0.80185555]
[1748870359652,1.07284352,104160.0,104150.0,1.03057587]
[1748870362648,1.07284352,104160.0,104150.0,0.92593587]
[1748870365862,1.30156384,104160.0,104150.0,0.22275555]
[1748870366048,1.30156384,104160.0,104150.0,0.22295555]
[1748870366246,1.30156384,104160.0,104150.0,0.66619555]
[1748870366648,1.30156384,104160.0,104150.0,0.66599555]
[1748870366940,1.30156384,104160.0,104150.0,0.66619555]
[1748870367143,1.30156384,104160.0,104150.0,0.03101395]
[1748870367459,0.1919416,104150.0,104140.0,0.00211254]
[1748870367755,1.10438224,104150.0,104140.0,0.00211254]
[1748870367947,1.10438224,104150.0,104140.0,0.00231254]
[1748870368453,1.40446928,104150.0,104140.0,0.00231254]
[1748870369057,1.10438224,104150.0,104140.0,0.00231254]
[1748870369253,1.10538224,104150.0,104140.0,0.00231254]
[1748870369644,1.10638224,104150.0,104140.0,0.00231254]
[1748870369847,1.10638224,104150.0,104140.0,0.02985394]
[1748870371151,0.6489416,104150.0,104140.0,0.02985394]
[1748870371357,0.87778133,104150.0,104140.0,0.02985394]
[1748870371757,1.17786837,104150.0,104140.0,0.02985394]
[1748870371958,1.17786837,104150.0,104140.0,0.00242796]
[1748870372761,1.67006837,104150.0,104140.0,0.00242796]
[1748870374059,1.72006837,104150.0,104140.0,0.00242796]
[1748870374750,1.41998133,104150.0,104140.0,0.00242796]
[1748870376258,1.41998133,104150.0,104140.0,0.00222796]
[1748870376460,1.41998133,104150.0,104140.0,0.00242796]
[1748870376764,1.61998133,104150.0,104140.0,0.00242796]
[1748870377163,1.61998133,104150.0,104140.0,0.00031542]
[1748870377468,0.1775785,104130.0,104120.0,0.548]
[1748870377665,1.35685796,104130.0,104120.0,0.44376]
[1748870377859,1.35685796,104130.0,104120.0,0.44396]
[1748870377860,1.6602587,104130.0,104120.0,0.44396]
[1748870378365,1.6602587,104130.0,104120.0,0.02769205]
[1748870378769,1.7602587,104130.0,104120.0,0.02769205]
[1748870379068,1.7602587,104130.0,104120.0,0.0002]
[1748870379069,1.8102587,104130.0,104120.0,0.0002]
[1748870379262,0.1919969,104120.0,104110.0,0.76636715]
[1748870379566,0.87703663,104120.0,104110.0,0.76636715]
[1748870379766,1.08623737,104120.0,104110.0,0.76636715]
[1748870380467,1.16219776,104120.0,104110.0,0.71836385]
[1748870380771,1.16219776,104120.0,104110.0,0.47835315]
[1748870380962,1.16219776,104120.0,104110.0,0.67036855]
[1748870381163,1.16219776,104120.0,104110.0,0.00211315]
[1748870381367,1.16219776,104120.0,104110.0,0.63884855]
[1748870381562,1.16219776,104120.0,104110.0,0.00331315]
[1748870382160,1.16219776,104120.0,104110.0,0.19532855]
[1748870383276,1.16219776,104120.0,104110.0,0.22722855]
[1748870383565,1.16319776,104120.0,104110.0,0.22722855]
[1748870384170,1.16419776,104120.0,104110.0,0.22622855]
[1748870384374,0.95499702,104120.0,104110.0,0.22622855]
[1748870384769,0.69335729,104120.0,104110.0,0.22622855]
[1748870385067,0.69335729,104120.0,104110.0,0.25772855]
[1748870385273,0.69335729,104120.0,104110.0,0.28506414]
[1748870386073,0.92219702,104120.0,104110.0,0.28506414]
[1748870387974,0.69335729,104120.0,104110.0,0.28506414]
[1748870388572,0.66225729,104120.0,104110.0,0.51390387]
[1748870389165,0.10946039,104120.0,104110.0,0.51390387]
[1748870389374,0.07796039,104120.0,104110.0,0.51390387]
[1748870390970,0.26995729,104120.0,104110.0,0.51390387]
[1748870391369,0.30125729,104120.0,104110.0,0.51390387]
[1748870391564,0.30125729,104120.0,104110.0,1.06194387]
[1748870391769,0.50125729,104120.0,104110.0,1.06194387]
[1748870391975,0.50125729,104120.0,104110.0,0.83306414]
[1748870393770,0.30926039,104120.0,104110.0,0.83306414]
[1748870393975,0.202,104120.0,104110.0,1.42270387]
[1748870395475,0.201,104120.0,104110.0,1.42270387]
[1748870395979,0.201,104120.0,104110.0,1.51875187]
[1748870396780,0.2,104120.0,104110.0,1.54955187]
[1748870397683,0.2,104120.0,104110.0,1.22466414]
[1748870397883,0.2,104120.0,104110.0,1.45350387]
[1748870400279,0.3919969,104120.0,104110.0,1.45350387]
[1748870401380,0.3919969,104120.0,104110.0,1.00974387]
[1748870401579,0.3919969,104120.0,104110.0,1.45330387]
[1748870402388,0.4233969,104120.0,104110.0,1.45330387]
[1748870403587,0.2233969,104120.0,104110.0,1.45330387]
[1748870403790,0.4563969,104120.0,104110.0,1.45330387]
[1748870404485,0.4563969,104120.0,104110.0,0.67666414]
[1748870404693,0.4563969,104120.0,104110.0,0.83212414]
[1748870404891,0.4866969,104120.0,104110.0,0.83212414]
[1748870405191,0.4866969,104120.0,104110.0,0.83192414]
[1748870405382,0.4866969,104120.0,104110.0,1.09076387]
[1748870405580,0.4563969,104120.0,104110.0,1.09096387]
[1748870405785,0.4563969,104120.0,104110.0,1.45176387]
[1748870405982,0.2314,104120.0,104110.0,0.90400387]
[1748870406190,0.2314,104120.0,104110.0,1.45168387]
[1748870406784,0.00465864,104120.0,104110.0,1.25005187]
[1748870407089,0.00465864,104120.0,104110.0,1.79793187]
[1748870407792,4e-08,104120.0,104110.0,1.79793187]
[1748870408488,4e-08,104120.0,104110.0,1.25205187]
[1748870408680,4e-08,104120.0,104110.0,1.80406141]
[1748870409489,4e-08,104120.0,104110.0,1.80606141]
[1748870411289,4e-08,104120.0,104110.0,1.55606141]
[1748870414978,0.03044371,104140.0,104110.0,2.45376601]
[1748870415178,0.00014367,104140.0,104130.0,1.14241813]
[1748870415386,0.00014367,104140.0,104130.0,2.01109786]
[1748870415881,0.00014367,104140.0,104130.0,1.78225813]
[1748870416279,0.00114367,104140.0,104130.0,1.78225813]
[1748870416694,0.00214367,104140.0,104130.0,1.78225813]
[1748870417191,0.20214367,104140.0,104130.0,1.78225813]
[1748870417692,0.20114367,104140.0,104130.0,1.78525813]
[1748870418792,0.20014367,104140.0,104130.0,1.78825813]
[1748870419185,0.20014367,104140.0,104130.0,2.01709786]
[1748870419383,0.20014367,104140.0,104130.0,1.46985786]
[1748870419987,0.20014367,104140.0,104130.0,1.4741074]
[1748870420388,0.23174367,104140.0,104130.0,1.4741074]
[1748870420596,0.23174367,104140.0,104130.0,1.56370794]
[1748870420794,0.26224367,104140.0,104130.0,2.0213874]
[1748870420994,0.26224367,104140.0,104130.0,1.34513813]
[1748870421499,0.26224367,104140.0,104130.0,1.78881813]
[1748870422900,0.26224367,104140.0,104130.0,2.01765786]
[1748870426309,0.26224367,104140.0,104130.0,2.01717786]
[1748870429904,0.06224367,104140.0,104130.0,2.01717786]
[1748870430096,0.26224367,104140.0,104130.0,2.01717786]
[1748870432402,0.25754367,104140.0,104130.0,2.01717786]
[1748870433419,0.04290742,104140.0,104130.0,2.11320586]
[1748870433595,0.0313,104160.0,104150.0,0.1919415]
[1748870433802,0.0313,104160.0,104150.0,1.37616473]
[1748870434002,0.0313,104160.0,104150.0,1.47206473]
[1748870435497,0.0313,104160.0,104150.0,1.83286473]
[1748870435897,0.00014371,104170.0,104160.0,0.1919231]
[1748870436099,0.00014371,104170.0,104160.0,1.07510256]
[1748870436310,0.00014371,104170.0,104160.0,0.84626283]
[1748870436807,0.03214371,104170.0,104160.0,0.84626283]
[1748870436999,0.03014216,104170.0,104160.0,0.84626283]
[1748870438107,0.23014216,104170.0,104160.0,0.84826283]
[1748870438408,0.23014216,104170.0,104160.0,1.07710256]
[1748870438614,0.23014216,104170.0,104160.0,1.07910256]
[1748870438817,0.23014216,104170.0,104160.0,0.85026283]
[1748870439696,0.26294216,104170.0,104160.0,0.85026283]
[1748870442414,0.26294216,104170.0,104160.0,0.88176283]
[1748870442915,0.26294216,104170.0,104160.0,1.32436283]
[1748870443906,0.29344216,104170.0,104160.0,1.32436283]
[1748870445412,0.29344216,104170.0,104160.0,1.42828283]
[1748870445821,0.29344216,104170.0,104160.0,1.1994431]
[1748870446013,0.29344216,104170.0,104160.0,1.42828283]
[1748870447214,0.29344216,104170.0,104160.0,0.7568431]
[1748870447423,0.29344216,104170.0,104160.0,1.1995231]
[1748870447607,0.29344216,104170.0,104160.0,1.42852283]
[1748870447801,0.48534686,104170.0,104160.0,0.5569231]
[1748870448005,0.29344216,104170.0,104160.0,1.1034831]
[1748870448204,0.29344216,104170.0,104160.0,1.33212283]
[1748870448419,0.29344216,104170.0,104160.0,1.33232283]
[1748870448907,0.29344216,104170.0,104160.0,0.88968283]
[1748870449212,0.29344216,104170.0,104160.0,1.33228283]
[1748870449413,0.29344216,104170.0,104160.0,1.33653237]
[1748870449808,0.29444216,104170.0,104160.0,1.42913237]
[1748870450311,0.29544216,104170.0,104160.0,1.42713237]
[1748870450517,0.29544216,104170.0,104160.0,1.42288283]
[1748870450817,0.29444216,104170.0,104160.0,1.42288283]
[1748870451118,0.29344216,104170.0,104160.0,1.42288283]
[1748870451415,0.09344216,104170.0,104160.0,1.42713237]
[1748870451915,0.29344216,104170.0,104160.0,1.42713237]
[1748870452411,0.29344216,104170.0,104160.0,1.42288283]
[1748870452615,0.71418649,104170.0,104160.0,0.1921231]
[1748870452915,1.07498649,104170.0,104160.0,0.1921231]
[1748870453106,1.07498649,104170.0,104160.0,0.7384031]
[1748870453308,1.07498649,104170.0,104160.0,0.7386031]
[1748870453717,1.28436886,104170.0,104160.0,0.1972531]
[1748870454020,1.28436886,104170.0,104160.0,0.7439731]
[1748870454318,1.28636886,104170.0,104160.0,0.7439731]
[1748870454706,1.07698649,104170.0,104160.0,0.7439731]
[1748870455309,1.28639552,104170.0,104160.0,0.7439731]
[1748870456622,1.28639552,104170.0,104160.0,0.7440131]
[1748870457020,1.28639552,104170.0,104160.0,0.1974531]
[1748870457220,1.28639552,104170.0,104160.0,0.7439731]
[1748870460920,0.69675579,104170.0,104160.0,1.33361283]
[1748870461121,0.69675579,104170.0,104160.0,1.39711283]
[1748870461326,0.48734676,104170.0,104160.0,1.39711283]
[1748870461527,0.48734676,104170.0,104160.0,1.03631283]
[1748870461731,0.28734676,104170.0,104160.0,1.03631283]
[1748870462027,0.48734676,104170.0,104160.0,1.03631283]
[1748870462422,0.69675579,104170.0,104160.0,1.03631283]
[1748870462723,0.69675579,104170.0,104160.0,1.06861283]
[1748870462925,0.48734676,104170.0,104160.0,1.06861283]
[1748870463127,0.48734676,104170.0,104160.0,0.8397731]
[1748870463721,0.69675579,104170.0,104160.0,0.84402264]
[1748870464028,1.05755579,104170.0,104160.0,0.77862264]
[1748870464626,1.05755579,104170.0,104160.0,0.7743731]
[1748870465130,1.05755579,104170.0,104160.0,0.7439731]
[1748870466524,1.05755579,104170.0,104160.0,0.7744731]
[1748870468024,1.05755579,104170.0,104160.0,0.8072731]
[1748870468426,1.05755579,104170.0,104160.0,0.8379731]
[1748870468925,1.05755579,104170.0,104160.0,0.8382531]
[1748870469730,1.28639552,104170.0,104160.0,0.8382531]
[1748870472032,0.85755579,104170.0,104160.0,0.8382531]
[1748870472330,1.05755579,104170.0,104160.0,0.8382531]
[1748870473231,0.84814676,104170.0,104160.0,0.8382531]
[1748870474325,0.84814676,104170.0,104160.0,0.8380131]
[1748870476133,1.07698649,104170.0,104160.0,0.8380131]
[1748870479030,1.25589552,104170.0,104160.0,0.8380131]
[1748870479231,1.02705579,104170.0,104160.0,0.8380131]
[1748870480030,1.05785579,104170.0,104160.0,0.8380131]
[1748870483141,0.84844676,104170.0,104160.0,0.82240283]
[1748870483544,0.84844676,104170.0,104160.0,0.82220283]
[1748870483932,0.64844676,104170.0,104160.0,0.82220283]
[1748870484342,0.84844676,104170.0,104160.0,0.82220283]
[1748870486134,0.84844676,104170.0,104160.0,0.82645237]
[1748870487344,0.84844676,104170.0,104160.0,0.38381237]
[1748870487542,0.84844676,104170.0,104160.0,0.82641237]
[1748870488143,0.84844676,104170.0,104160.0,0.82216283]
[1748870488344,0.84844676,104170.0,104160.0,0.37956283]
[1748870488542,0.84844676,104170.0,104160.0,0.82216283]
[1748870491233,0.84844676,104170.0,104160.0,0.82641237]
[1748870492653,1.05845566,104170.0,104160.0,0.82641237]
[1748870493146,1.28729539,104170.0,104160.0,0.82216283]
[1748870493848,1.28729539,104170.0,104160.0,0.27564283]
[1748870494044,1.07728649,104170.0,104160.0,0.82196283]
[1748870494245,1.07728649,104170.0,104160.0,0.82641237]
[1748870495249,1.07728649,104170.0,104160.0,0.82216283]
[1748870495443,1.17728649,104170.0,104160.0,0.09473]
[1748870495747,0.1919783,104130.0,104120.0,0.0450155]
[1748870495947,1.37125776,104130.0,104120.0,0.0450155]
[1748870496150,1.93149776,104130.0,104120.0,0.0452155]
[1748870496354,2.23032955,104130.0,104120.0,0.02944535]
[1748870496647,0.1919968,104120.0,104110.0,0.00211315]
[1748870496848,0.1920152,104110.0,104100.0,0.00014371]
[1748870497050,0.96315493,104110.0,104100.0,0.00014371]
[1748870497243,1.16293093,104110.0,104100.0,0.00014371]
[1748870497548,1.06687493,104110.0,104100.0,0.00014371]
[1748870497758,1.06687493,104110.0,104100.0,0.00500371]
[1748870497949,1.06687493,104110.0,104100.0,0.00520371]
[1748870498150,1.06787493,104110.0,104100.0,0.00520371]
[1748870498451,1.27641071,104110.0,104100.0,0.00520371]
[1748870499548,1.73947466,104110.0,104100.0,0.00520371]
[1748870501150,0.192052,104090.0,104080.0,0.0346881]
[1748870501352,1.14249173,104090.0,104080.0,0.0346881]
[1748870501645,1.61597173,104090.0,104080.0,0.0346881]
[1748870501854,1.61597173,104090.0,104080.0,0.0348881]
[1748870502054,1.61597173,104090.0,104080.0,0.0346881]
[1748870502352,1.61597173,104090.0,104080.0,0.0368881]
[1748870502353,1.387132,104090.0,104080.0,0.0368881]
[1748870502552,1.61597173,104090.0,104080.0,0.0366881]
[1748870502744,1.94088746,104090.0,104080.0,6e-08]
[1748870503048,0.1920706,104080.0,104070.0,0.00014371]
[1748870503244,0.81251033,104080.0,104070.0,0.00014371]
[1748870504044,0.81251033,104080.0,104070.0,0.03357387]
[1748870504440,0.81251033,104080.0,104070.0,0.06437387]
[1748870505149,0.3916,104080.0,104070.0,0.25646287]
[1748870505349,0.5528706,104080.0,104070.0,0.28836287]
[1748870505557,0.78171033,104080.0,104070.0,0.09627387]
[1748870505756,0.78171033,104080.0,104070.0,0.28836287]
[1748870506055,0.81421033,104080.0,104070.0,0.28856287]
[1748870506260,0.81621033,104080.0,104070.0,0.09647387]
[1748870508362,0.91621033,104080.0,104070.0,0.00034371]
[1748870508658,0.94751033,104080.0,104070.0,0.00014371]
[1748870508858,1.49563033,104080.0,104070.0,0.00014371]
[1748870509162,1.49563033,104080.0,104070.0,0.00034371]
[1748870509357,1.72447006,104080.0,104070.0,1e-08]
[1748870509556,1.77447006,104080.0,104070.0,5e-08]
[1748870510051,1.22635006,104080.0,104070.0,5e-08]
[1748870510257,1.35068898,104080.0,104070.0,5e-08]
[1748870510460,1.38248898,104080.0,104070.0,0.00424959]
[1748870510650,1.38248898,104080.0,104070.0,9e-08]
[1748870510846,1.3488306,104080.0,104070.0,9e-08]
[1748870511047,1.4449146,104080.0,104070.0,9e-08]
[1748870511262,1.90259406,104080.0,104070.0,9e-08]
[1748870511961,2.10259406,104080.0,104070.0,9e-08]
[1748870512363,0.42094753,104060.0,104050.0,0.06361437]
[1748870512552,1.14254753,104060.0,104050.0,0.06361437]
[1748870512863,1.20614753,104060.0,104050.0,0.06361437]
[1748870513053,1.30614753,104060.0,104050.0,0.00211437]
[1748870513254,1.88574753,104060.0,104050.0,0.00211437]
[1748870513650,1.93574753,104060.0,104050.0,0.00431437]
[1748870513855,1.78503796,104060.0,104050.0,0.00431437]
[1748870514058,2.01387769,104060.0,104050.0,0.00431437]
[1748870514358,2.01387769,104060.0,104050.0,0.00231437]
[1748870514566,2.01587769,104060.0,104050.0,0.00231437]
[1748870514750,2.01587769,104060.0,104050.0,0.00431437]
[1748870515350,2.01787769,104060.0,104050.0,0.00231437]
[1748870515562,2.01787769,104060.0,104050.0,0.00211437]
[1748870515951,2.01787769,104060.0,104050.0,0.00231437]
[1748870517154,0.1921447,104040.0,104030.0,0.065]
[1748870517346,1.14258443,104040.0,104030.0,0.065]
[1748870517546,1.20648443,104040.0,104030.0,0.065]
[1748870517751,1.20648443,104040.0,104030.0,0.0699]
[1748870517959,1.20648443,104040.0,104030.0,0.2622632]
[1748870518259,1.20648443,104040.0,104030.0,0.0711]
[1748870518462,1.20648443,104040.0,104030.0,0.0721]
[1748870518850,1.20648443,104040.0,104030.0,0.2642632]
[1748870519246,1.20648443,104040.0,104030.0,0.0071]
[1748870519451,1.20648443,104040.0,104030.0,0.1992632]
[1748870519659,1.20648443,104040.0,104030.0,0.2297632]
[1748870519855,0.9451447,104040.0,104030.0,0.2623632]
[1748870520056,0.9137447,104040.0,104030.0,0.2623632]
[1748870520260,0.9137447,104040.0,104030.0,0.2950632]
[1748870520461,1.14258443,104040.0,104030.0,0.2950632]
[1748870523852,1.14258443,104040.0,104030.0,0.3094732]
[1748870524759,1.14258443,104040.0,104030.0,0.12155954]
[1748870524961,1.14258443,104040.0,104030.0,0.56683954]
[1748870525156,1.20578443,104040.0,104030.0,0.56663954]
[1748870525366,1.20578443,104040.0,104030.0,0.56679954]
[1748870525556,1.20578443,104040.0,104030.0,0.56659954]
[1748870525864,1.20578443,104040.0,104030.0,0.56679954]
[1748870526256,0.9769447,104040.0,104030.0,0.75896274]
[1748870526462,1.20578443,104040.0,104030.0,0.75896274]
[1748870526651,1.40578443,104040.0,104030.0,0.75796274]
[1748870526857,1.40752616,104040.0,104030.0,0.75796274]
[1748870527257,1.40752616,104040.0,104030.0,0.31272274]
[1748870527461,1.40752616,104040.0,104030.0,0.31172274]
[1748870527662,1.40884038,104040.0,104030.0,0.31172274]
[1748870528669,1.40884038,104040.0,104030.0,0.29609276]
[1748870529167,1.37874038,104040.0,104030.0,0.29609276]
[1748870530267,1.37874038,104040.0,104030.0,0.10392956]
[1748870530865,1.41004038,104040.0,104030.0,0.10392956]
[1748870533270,1.41004038,104040.0,104030.0,0.29609276]
[1748870533568,1.41104733,104040.0,104030.0,0.29609276]
[1748870535573,1.1509076,104040.0,104030.0,0.29609276]
[1748870536166,1.37974733,104040.0,104030.0,0.29609276]
[1748870536575,1.37974733,104040.0,104030.0,0.350278]
[1748870536879,1.37974733,104040.0,104030.0,0.79688075]
[1748870538690,1.1509076,104040.0,104030.0,0.79688075]
[1748870538889,1.37974733,104040.0,104030.0,0.79688075]
[1748870539386,1.37974733,104040.0,104030.0,0.7969384]
[1748870540383,1.86974733,104040.0,104030.0,0.7969384]
[1748870541383,1.66974733,104040.0,104030.0,0.7969384]
[1748870541886,1.90124733,104040.0,104030.0,0.3504184]
[1748870542089,1.90124733,104040.0,104030.0,0.7966584]
[1748870542788,1.90124733,104040.0,104030.0,0.78102843]
[1748870543386,1.90124733,104040.0,104030.0,0.781072]
[1748870544486,1.90124733,104040.0,104030.0,0.72678554]
[1748870544787,1.93154733,104040.0,104030.0,0.71153388]
[1748870545381,1.88124733,104040.0,104030.0,0.71153388]
[1748870545580,1.88124733,104040.0,104030.0,0.71133388]
[1748870545785,1.88124733,104040.0,104030.0,0.74283388]
[1748870546184,1.88124733,104040.0,104030.0,0.74303388]
[1748870546792,1.6324076,104040.0,104030.0,0.74303388]
[1748870548180,1.6324076,104040.0,104030.0,0.29663388]
[1748870548385,1.86124733,104040.0,104030.0,0.74299388]
[1748870549385,1.86124733,104040.0,104030.0,0.69028549]
[1748870549586,1.86124733,104040.0,104030.0,0.65738549]
[1748870549784,1.86124733,104040.0,104030.0,0.65758549]
[1748870550184,1.86124733,104040.0,104030.0,0.69038549]
[1748870550892,1.85124733,104040.0,104030.0,0.69038549]
[1748870551087,1.85124733,104040.0,104030.0,0.72358549]
[1748870551793,1.85124733,104040.0,104030.0,0.72334549]
[1748870551994,2.05978311,104040.0,104030.0,0.72334549]
[1748870552293,2.05978311,104040.0,104030.0,0.24390549]
[1748870552488,2.05978311,104040.0,104030.0,0.69010549]
[1748870552695,2.05978311,104040.0,104030.0,0.67447554]
[1748870553286,1.85124733,104040.0,104030.0,0.67447554]
[1748870553585,1.65124733,104040.0,104030.0,0.67447554]
[1748870553790,1.85124733,104040.0,104030.0,0.67447554]
[1748870554780,2.1488374,104040.0,104030.0,0.67447554]
[1748870555699,2.1488374,104040.0,104030.0,0.22827554]
[1748870555898,2.1488374,104040.0,104030.0,0.67471554]
[1748870556598,2.1488374,104040.0,104030.0,0.22827554]
[1748870556798,2.1488374,104040.0,104030.0,0.67463554]
[1748870556993,1.85124733,104040.0,104030.0,0.67463554]
[1748870557897,2.1488374,104040.0,104030.0,0.67463554]
[1748870559891,2.1488374,104040.0,104030.0,0.46404234]
[1748870560191,2.1488374,104040.0,104030.0,0.42641898]
[1748870560386,2.1488374,104040.0,104030.0,0.43086852]
[1748870560590,2.1488374,104040.0,104030.0,0.62303162]
[1748870561200,1.85124733,104040.0,104030.0,0.62303162]
[1748870561605,2.15082147,104040.0,104030.0,0.43086852]
[1748870561811,2.15082147,104040.0,104030.0,0.62303162]
[1748870562509,2.15082147,104040.0,104030.0,0.62303172]
[1748870562804,2.15082147,104040.0,104030.0,0.607401]
[1748870564299,2.15082147,104040.0,104030.0,0.19661274]
[1748870564496,2.15082147,104040.0,104030.0,0.64421274]
[1748870564799,2.15082147,104040.0,104030.0,0.45204954]
[1748870564997,2.15082147,104040.0,104030.0,0.64421254]
[1748870567903,0.1922,104010.0,104000.0,0.1922184]
[1748870568108,1.26249472,104010.0,104000.0,0.7035984]
[1748870568305,1.35959472,104010.0,104000.0,0.7037984]
[1748870568602,1.32955762,104010.0,104000.0,0.7035984]
[1748870568806,1.29697336,104010.0,104000.0,0.51405813]
[1748870569102,1.29697336,104010.0,104000.0,0.51605813]
[1748870569300,1.29697336,104010.0,104000.0,0.96689813]
[1748870569496,1.08747864,104010.0,104000.0,1.00355165]
[1748870569906,1.29697336,104010.0,104000.0,1.00355165]
[1748870570307,1.29697336,104010.0,104000.0,1.10891165]
[1748870570506,1.29697336,104010.0,104000.0,0.66019165]
[1748870570700,1.29697336,104010.0,104000.0,1.10887165]
[1748870571207,1.29697336,104010.0,104000.0,0.55475165]
[1748870571409,1.29697336,104010.0,104000.0,1.10875165]
[1748870571808,1.49697336,104010.0,104000.0,1.10875165]
[1748870572809,1.49697336,104010.0,104000.0,1.09311869]
[1748870573014,1.28747864,104010.0,104000.0,1.09311869]
[1748870573312,1.28747864,104010.0,104000.0,0.53911869]
[1748870574103,1.31847864,104010.0,104000.0,0.53911869]
[1748870574507,1.31847864,104010.0,104000.0,0.75859896]
[1748870574704,1.31847864,104010.0,104000.0,0.86403896]
[1748870574907,1.31847864,104010.0,104000.0,1.09287869]
[1748870575518,1.31847864,104010.0,104000.0,0.53911869]
[1748870576210,0.60447864,104010.0,104000.0,0.53911869]
[1748870576511,0.60447864,104010.0,104000.0,1.12875842]
[1748870576512,0.53849504,104010.0,104000.0,1.12875842]
[1748870576704,0.53849504,104010.0,104000.0,1.92370642]
[1748870576908,0.53849504,104010.0,104000.0,2.02914642]
[1748870577405,0.53849504,104010.0,104000.0,1.80030669]